Cogmind - Beta 11 X8 @@@ ROGUE MODE // 2021.11.01 @ 20:21:49 // Winter2019/RPGLIKE Player: SHOCK Result: Self-destructed Performance ------------- Evolutions (1) 500 Regions Visited (5) 1000 Robots Destroyed (87) 435 Value Destroyed (2062) 2062 Prototype IDs (10) 200 Alien Tech Used (0) 0 Bonus (323) 323 TOTAL SCORE: 4520 Bonus ------- High Alert Combat Kills 145 Aligned with FarCom 300 Friendly Fire -122 Cogmind --------- Core Integrity 1000/1000 Matter 694/700 Energy 560/560 System Corruption 0% Temperature Cool (1) Movement Flying (40) Location -9/Exiles Parts ------- > --- POWER (1) -------- Light Nuclear Core > --- PROPULSION (1) --- Improved Flight Unit > --- UTILITY (10) ----- Visual Processing Unit Sensor Array Experimental Sensor Array Signal Interpreter Improved Terrain Scanner Improved Targeting Computer Improved Targeting Computer Shield Generator Hacking Suite Supersonic Drone Bay (0/1) > --- WEAPON (4) ------- Improved Medium Laser Improved Medium Laser Ion Cannon Gauss Cannon > --- INVENTORY (10) --- Wheel Combat Airjet Combat Airjet Launcher Guidance Computer Bomb Drone Bay (16/16) Rocket Launcher Mining Laser Chainsword Makeshift Spear Peak State ------------ > --- POWER ------------ Light Nuclear Core > --- PROPULSION ------- Improved Flight Unit > --- UTILITY ---------- Visual Processing Unit Sensor Array Experimental Sensor Array Signal Interpreter Improved Terrain Scanner Improved Targeting Computer Improved Targeting Computer Shield Generator Hacking Suite Supersonic Drone Bay > --- WEAPON ----------- Improved Medium Laser Improved Medium Laser Ion Cannon Gauss Cannon > --- INVENTORY -------- Wheel Combat Airjet Combat Airjet Launcher Guidance Computer Bomb Drone Bay Rocket Launcher Mining Laser Chainsword Makeshift Spear [Rating: 56] Favorites ----------- Power Light Nuclear Core Engine Ion Engine Power Core Light Nuclear Core Propulsion Improved Flight Unit Wheel Wheel Hover Unit Improved Hover Unit Flight Unit Improved Flight Unit Utility Improved Terrain Scanner Device Improved Terrain Scanner Processor Improved Targeting Computer Hackware Hacking Suite Weapon Assault Rifle Energy Gun Improved Medium Laser Energy Cannon Ion Cannon Ballistic Gun Assault Rifle Ballistic Cannon Gauss Cannon Special Weapon Mining Laser Build | -11 -10 -10 -9 -9 -9 ------- Run | Scr Mat Min Mat Min Exi Slots Evolved 12 | 12 . . . . . Power . | . . . . . . Propulsion . | . . . . . . Utility 9 | 9 . . . . . Weapon 3 | 3 . . . . . Parts Attached 45 | 6 8 8 19 3 1 Power 5 | 1 . 1 3 . . Engine 3 | 1 . . 2 . . Core 2 | . . 1 1 . . Reactor . | . . . . . . Propulsion 4 | 1 1 1 1 . . Treads . | . . . . . . Leg . | . . . . . . Wheel 1 | 1 . . . . . Hover 1 | . 1 . . . . Flight 2 | . . 1 1 . . Utility 15 | 1 4 2 5 2 1 Device 6 | 1 1 . 1 2 1 Storage . | . . . . . . Processor 8 | . 3 2 3 . . Hackware 1 | . . . 1 . . Protection . | . . . . . . Artifact . | . . . . . . Weapon 21 | 3 3 4 10 1 . Energy Gun 9 | 1 . 2 6 . . Energy Cannon 1 | . . . 1 . . Ballistic Gun 9 | 2 2 2 3 . . Ballistic Cannon 1 | . . . . 1 . Launcher . | . . . . . . Special Weapon 1 | . 1 . . . . Impact Weapon . | . . . . . . Slashing Weapon . | . . . . . . Piercing Weapon . | . . . . . . Special Melee Weapon . | . . . . . . Unidentified Prototypes 7 | . . . 5 1 1 Corrupted Parts 1 | . . 1 . . . System Corruption 1 | . . 1 . . . Parts Lost . | . . . . . . Power . | . . . . . . Propulsion . | . . . . . . Utility . | . . . . . . Weapon . | . . . . . . Highest Loss Streak . | . . . . . . Average Slot Usage (%) 75 | . 44 72 94 100 100 Engine 1 | . 6 . . . . Core 4 | . . 5 5 6 6 Flight 4 | . . 5 6 6 6 Device 15 | . 10 12 15 24 31 Processor 22 | . 2 22 36 31 25 Hackware 2 | . . . 3 6 6 Energy Gun 6 | . 2 5 6 14 12 Energy Cannon 2 | . . . 3 6 6 Ballistic Gun 13 | . 16 18 14 . . Special Weapon 1 | . 3 . . . . Naked Turns . | . . . . . . Heaviest Build 30 | 11 14 17 24 30 30 Greatest Support 40 | 40 37 37 35 35 35 Greatest Overweight (x) . | . . . . . . Average Overweight (x) . | . . . . . . Largest Inventory Capacity 10 | 10 10 10 10 10 10 Average Capacity 9 | 9 10 10 10 10 10 Most Carried 10 | 1 2 10 9 10 10 Average Carried 5 | . 1 5 8 9 10 Final Capacity 10 | 10 10 10 10 10 10 Final Carried 10 | 1 2 8 8 10 10 Class Distribution -------------------- 33% | Wizard-Scout 23% | Hauler-Scout 21% | Hauler-Skirmisher 12% | Hacker-Scout 8% | Scavenger-Scout Dominant Class ---------------- Hauler-Skirmisher | -10/Materials Hauler-Scout | -10/Mines Wizard-Scout | -9/Materials Wizard-Scout | -9/Mines Wizard-Scout | -9/Exiles Resources | -11 -10 -10 -9 -9 -9 ----------- Run | Scr Mat Min Mat Min Exi Matter Collected 1909 | 444 419 420 586 30 10 Remotely . | . . . . . . Salvage Created 2573 | 146 450 486 1322 159 10 Parts 189 | 10 29 38 99 13 . Haulers Intercepted 5 | . . . 5 . . Recyclers Shooed 1 | . . 1 . . . Parts Field Recycled . | . . . . . . Retrieved Matter . | . . . . . . Parts Self-Destructed . | . . . . . . Prevented . | . . . . . . Kills | -11 -10 -10 -9 -9 -9 ------- Run | Scr Mat Min Mat Min Exi Combat Hostiles Destroyed 63 | . 10 14 33 6 . Guns 54 | . 8 14 26 6 . Cannons 8 | . 2 . 6 . . AOE 1 | . . . 1 . . Classes Destroyed 12 | 2 3 5 1 . 1 Worker 3 | . . 3 . . . Tunneler 4 | 3 1 . . . . Hauler 5 | . . . 5 . . Recycler 4 | 1 . 3 . . . Operator 2 | . 1 . 1 . . Drone 1 | . . . . . 1 Watcher 7 | . 3 . 4 . . Swarmer 20 | . . 5 12 3 . Grunt 33 | . 10 6 14 3 . Sentry 8 | . . 1 7 . . Demolisher 1 | . . 1 . . . Assembled 1 | . . 1 . . . Best Kill Streak 8 | 4 4 6 8 6 . Combat Bots Only 8 | . 3 4 8 6 . Max Kills in Single Turn 2 | 2 2 2 2 1 1 Gunslinging 1 | . 1 1 . . . Exploded 1 | . . . 1 . . Melee . | . . . . . . Uniques/NPCs Destroyed . | . . . . . . Combat | -11 -10 -10 -9 -9 -9 -------- Run | Scr Mat Min Mat Min Exi Damage Taken 1343 | . 469 486 323 65 . Core 1061 | . 369 396 247 49 . Absorbed by Shields 148 | . . . 122 26 . Redirected to Core 891 | . 313 316 217 45 . Core Remaining (%) 98 | 100 . 97 . . . Volleys Fired 122 | 4 31 27 53 6 1 Largest 4 | 3 4 4 4 4 4 Hottest 228 | 80 160 106 228 228 220 Shots Fired 456 | 12 100 104 212 24 4 Gun 395 | 12 86 104 173 18 2 Cannon 47 | . . . 39 6 2 Launcher . | . . . . . . Special 14 | . 14 . . . . Kinetic 298 | 8 76 81 132 . 1 Thermal 107 | . 14 . 66 24 3 Explosive . | . . . . . . Electromagnetic 51 | 4 10 23 14 . . Robot Hit Streak 29 | 4 6 6 17 29 1 Robot Miss Streak 5 | 1 2 5 2 . 2 Penetration Max . | . . . . . . Secondary Targets 7 | . 3 3 1 . . Max Gunslinging Chain 1 | . 1 1 1 . . Shots Hit Robots 233 | 6 48 47 119 12 1 Core Hits 120 | 4 25 29 54 7 1 Critical Kills 3 | . . 1 2 . . Critical Parts Destroyed 1 | . . . 1 . . Critical Strikes 7 | . 1 2 4 . . Burn 1 | . . . 1 . . Destroy 4 | . . 1 3 . . Corrupt 2 | . 1 1 . . . Melee Attacks . | . . . . . . Impact . | . . . . . . Slashing . | . . . . . . Piercing . | . . . . . . Sneak Attacks . | . . . . . . Combat Hostiles . | . . . . . . Follow-up Attacks . | . . . . . . Damage Inflicted 3879 | 91 710 645 2188 223 22 Guns 3116 | 91 574 645 1606 200 . Cannons 599 | . . . 554 23 22 Explosions 68 | . 40 . 28 . . Melee . | . . . . . . Ramming . | . . . . . . Kinetic 2102 | 48 499 527 1028 . . Thermal 1336 | . 136 . 955 223 22 Explosive . | . . . . . . Electromagnetic 441 | 43 75 118 205 . . Impact . | . . . . . . Slashing . | . . . . . . Piercing . | . . . . . . Highest Corruption 1 | . . 1 . . . Average Corruption 1 | . . 1 . . . Corruption Purged . | . . . . . . Effects 1 | . . 1 . . . Message Errors 1 | . . 1 . . . Overload Shots . | . . . . . . Overflow Damage 4 | . . . 4 . . Projectiles 4 | . . . 4 . . Explosions . | . . . . . . Melee . | . . . . . . Knockbacks . | . . . . . . Impact . | . . . . . . Kinetic . | . . . . . . Secondary . | . . . . . . Self-Inflicted Damage 26 | . 18 . 8 . . Shots 2 | . 1 . 1 . . Rammed . | . . . . . . Targets Rammed . | . . . . . . Kicked . | . . . . . . Crushed . | . . . . . . Highest Temperature 18 | . . . 18 11 . Average Temperature 9 | . . . 11 8 . Received Heat Transfer 493 | . 279 96 94 24 . Siege Activations . | . . . . . . Robots Corrupted . | . . . . . . Combat Hostiles . | . . . . . . Parts Fried 1 | . 1 . . . . Impact Corruptions . | . . . . . . Robots Melted . | . . . . . . Combat Hostiles . | . . . . . . Parts Melted 3 | . . . 3 . . Heat Transferred 2544 | . 200 . 1826 481 37 Parts Sabotaged . | . . . . . . Parts Stolen . | . . . . . . Parts Stripped . | . . . . . . Power Chain Reactions 2 | . 1 . 1 . . Missiles Intercepted . | . . . . . . Alert | -11 -10 -10 -9 -9 -9 ------- Run | Scr Mat Min Mat Min Exi Peak Influence 843 | 20 256 310 843 196 . Initial 101 | . 13 40 101 40 . Average 186 | 5 117 214 275 129 . Maximum Alert Level 3 | . 1 1 3 . . Low Security (%) 68 | 100 87 35 57 100 . Level 1 23 | . 12 64 17 . . Level 2 3 | . . . 13 . . Level 3 3 | . . . 12 . . Level 4 . | . . . . . . Level 5 . | . . . . . . High Security . | . . . . . . Max Security . | . . . . . . Squads Dispatched 10 | . 4 . 5 1 . Investigation 8 | . 3 . 4 1 . Extermination . | . . . . . . Reinforcement 2 | . 1 . 1 . . Assault . | . . . . . . Garrison . | . . . . . . Intercept . | . . . . . . Construction Impeded . | . . . . . . Haulers Reinforced . | . . . . . . Active Scanning Responses . | . . . . . . Cargo Convoy Interrupts . | . . . . . . Stealth | -11 -10 -10 -9 -9 -9 --------- Run | Scr Mat Min Mat Min Exi Distress Signals 3 | . 1 . 2 . . Communications Jammed . | . . . . . . Distress Signals . | . . . . . . Times Spotted 100 | . 18 35 41 6 . Peak Tracking Total 20 | . 5 20 4 3 . Tactical Retreats 3 | . . 2 1 . . Traps | -11 -10 -10 -9 -9 -9 ------- Run | Scr Mat Min Mat Min Exi Traps Triggered 2 | . 1 . 1 . . Indirectly . | . . . . . . Trap Hack Attempts . | . . . . . . Triggered . | . . . . . . Disarmed . | . . . . . . Reprogrammed . | . . . . . . Reused . | . . . . . . Traps Extracted . | . . . . . . Installed . | . . . . . . Triggered . | . . . . . . Machines | -11 -10 -10 -9 -9 -9 ---------- Run | Scr Mat Min Mat Min Exi Machines Disabled 5 | . . 2 3 . . Max in Single Turn 1 | . . 1 1 . . Machines Sabotaged . | . . . . . . Garrisons Compromised . | . . . . . . Overloaded Fab Kills . | . . . . . . Hacking | -11 -10 -10 -9 -9 -9 --------- Run | Scr Mat Min Mat Min Exi Machines Accessed 23 | . 9 . 12 2 . Terminals 15 | . 7 . 8 . . Fabricators . | . . . . . . Repair Stations . | . . . . . . Recycling Units 4 | . 2 . 2 . . Scanalyzers 2 | . . . 2 . . Garrison Access . | . . . . . . Total Hacks 59 | . 24 . 33 2 . Successful 47 | . 17 . 28 2 . Failed 12 | . 7 . 5 . . Catastrophic . | . . . . . . Database Lockouts . | . . . . . . Manual 54 | . 21 . 32 . 1 Terminals 51 | . 22 . 29 . . Fabricators . | . . . . . . Repair Stations . | . . . . . . Recycling Units 4 | . 2 . 2 . . Scanalyzers 2 | . . . 2 . . Garrison Access . | . . . . . . Terminal Hacks 26 | . 9 . 15 2 . Prototype ID Bank 1 | . . . 1 . . Open Door 2 | . . . . 2 . Branch Access Points 1 | . . . 1 . . Machine Index 1 | . . . 1 . . Recycling Unit Index 1 | . 1 . . . . Alert Level 10 | . 5 . 5 . . Unreport Threat 6 | . . . 6 . . Recall Investigation 2 | . 1 . 1 . . Recall Reinforcements 1 | . 1 . . . . Zone Layout 1 | . 1 . . . . Fabricator Hacks . | . . . . . . Repair Station Hacks . | . . . . . . Recycling Unit Hacks . | . . . . . . Scanalyzer . | . . . . . . Garrison Access Hacks . | . . . . . . Unauthorized Hacks 21 | . 8 . 13 . . Terminals 15 | . 6 . 9 . . Assimilate 3 | . 1 . 2 . . Botnet 12 | . 5 . 7 . . Fabricators . | . . . . . . Repair Stations . | . . . . . . Recycling Units 4 | . 2 . 2 . . Tunnel 4 | . 2 . 2 . . Scanalyzers 2 | . . . 2 . . Researchers 1 | . . . 1 . . Extract 1 | . . . 1 . . Garrison Access . | . . . . . . Data Cores Recovered 1 | . 1 . . . . Used 1 | . 1 . . . . Hacking Detections 4 | . 2 . 2 . . Full Trace Events . | . . . . . . Feedback Events . | . . . . . . Feedback Blocked . | . . . . . . Robot Schematics Acquired . | . . . . . . Robots Built . | . . . . . . Authchips . | . . . . . . Time . | . . . . . . Total Robot Build Rating . | . . . . . . Part Schematics Acquired 2 | . . . 2 . . Parts Built . | . . . . . . Authchips . | . . . . . . Time . | . . . . . . Total Part Build Rating . | . . . . . . Parts Repaired . | . . . . . . Time . | . . . . . . Parts Recycled . | . . . . . . Recycled Matter . | . . . . . . Retrieved Matter . | . . . . . . Retrieved Components . | . . . . . . Parts Scanalyzed . | . . . . . . Part Schematics Acquired . | . . . . . . Parts Damaged . | . . . . . . Bothacking | -11 -10 -10 -9 -9 -9 ------------ Run | Scr Mat Min Mat Min Exi Used RIF Installer . | . . . . . . Robots Hacked . | . . . . . . Non-combat . | . . . . . . Combat . | . . . . . . Robot Hacks Applied . | . . . . . . Relay Couplers Released . | . . . . . . Robots Rewired . | . . . . . . Allies Hacked . | . . . . . . Hacks Repelled . | . . . . . . Allies | -11 -10 -10 -9 -9 -9 -------- Run | Scr Mat Min Mat Min Exi Total Allies 3 | . . . 1 2 . Largest Group 3 | . . . 1 3 3 Highest-Rated Group 51 | . . . 10 51 51 Highest-Rated Ally 31 | . . . 10 31 31 Total Orders . | . . . . . . Ally Attacks . | . . . . . . Total Damage . | . . . . . . Kills . | . . . . . . Allies Corrupted . | . . . . . . Allies Melted . | . . . . . . Intel | -11 -10 -10 -9 -9 -9 ------- Run | Scr Mat Min Mat Min Exi Robot Analysis Total . | . . . . . . Derelict Logs Recovered 2 | . . 1 . 1 . Drone Launches 1 | . . . . . 1 Drone Recoveries . | . . . . . . Exploration | -11 -10 -10 -9 -9 -9 ------------- Run | Scr Mat Min Mat Min Exi Turns Passed 3093 | 76 866 724 891 471 65 Spaces Moved 4622 | 109 1233 1055 1280 797 148 Core 1121 | 108 1013 . . . . Treads . | . . . . . . Legs . | . . . . . . Wheels 1 | 1 . . . . . Hover 310 | . 220 90 . . . Flight 3190 | . . 965 1280 797 148 Fastest Speed 40 | 50 50 40 40 40 40 Average Speed 43 | 50 51 41 40 40 40 Slowest Speed 80 | 80 60 60 40 40 40 Overloaded Moves . | . . . . . . Propulsion Burnouts . | . . . . . . Robots Hopped 38 | . . 11 21 6 . Cave-ins Triggered . | . . . . . . Exploration Rate (%) 69 | 5 95 98 81 93 43 Regions Visited 5 Branch Regions 3 Pre-discovered Areas 5 | . 2 . 2 1 . Known Exits Taken 4 | . 1 1 1 1 . Unknown Exits Taken 1 | 1 . . . . . Scrap Searched 3 | . . 1 . 2 . Spaces Dug 2 | . 2 . . . . Terrain Destroyed 18 | . 13 . 4 . 1 Melee . | . . . . . . Projectile 9 | . 6 . 2 . 1 AOE 9 | . 7 . 2 . . Terrain Rammed . | . . . . . . Walls Destroyed . | . . . . . . Machines Disabled . | . . . . . . Actions | -11 -10 -10 -9 -9 -9 --------- Run | Scr Mat Min Mat Min Exi Total 5321 | 119 1361 1259 1502 929 151 Wait 472 | . 85 129 142 116 . Move 4545 | 108 1232 1034 1239 784 148 Hop 34 | . . 9 19 6 . Pick Up 10 | . 1 6 1 2 . Fast Attach 35 | 6 7 4 14 3 1 Attach 1 | . . . 1 . . Detach 1 | 1 . . . . . Swap 9 | . 1 4 4 . . Drop 25 | . 1 5 14 4 1 Fire 122 | 4 31 27 53 6 1 Melee . | . . . . . . Ram . | . . . . . . Kick . | . . . . . . Crush . | . . . . . . Escape Stasis . | . . . . . . Rewire . | . . . . . . Trap . | . . . . . . Miscellaneous 67 | . 3 41 15 8 . Route ------- -11/Scrapyard -10/Materials (discovered 4 exits: *Mat x3 / *Min) -10/Mines (discovered 2 exits: *Mat x2) -9/Materials (discovered 4 exits: *Mat x2 / *Min / *Sto) -9/Mines (discovered 3 exits: *Mat x2 / *Exi) -9/Exiles (discovered 1 exit: [*Min]) History --------- Turn | Location | Event 6 | -11/Scrapyard | Discovered new exit (range 15) 8 | -11/Scrapyard | Upgraded with Utility slot (x9) 8 | -11/Scrapyard | Upgraded with Weapon slot (x3) 77 | -11/Scrapyard | Entered Materials 304 | -10/Materials | Build established: Hauler-Skirmisher 354 | -10/Materials | Discovered new exit (range 3) 524 | -10/Materials | Discovered new exit (range 15) 748 | -10/Materials | Discovered new exit (range 15) 768 | -10/Materials | Discovered new exit (range 7) 781 | -10/Materials | Reached level 2 908 | -10/Materials | Identified exit to Materials 937 | -10/Materials | Identified exit to Mines 943 | -10/Materials | Entered Mines 1016 | -10/Mines | Build established: Hauler-Scout 1062 | -10/Mines | A weapon hastily lodged in a ceiling crevice suddenly fell to the ground 1078 | -10/Mines | Reached level 3 1092 | -10/Mines | Received a Rocket Launcher from a helpful Derelict 1108 | -10/Mines | Discovered exit to Materials (range 16) 1153 | -10/Mines | Assembled infested the area 1283 | -10/Mines | Learned location of 1 exit from Materials 1284 | -10/Mines | Discovered exit to Materials (range 11) 1399 | -10/Mines | Joined a pair of Derelicts in attacking an 0b10 outpost 1667 | -10/Mines | Entered Materials 1668 | -9/Materials | Identified exit to Materials 1669 | -9/Materials | Reached level 4 1936 | -9/Materials | Reached level 5 2016 | -9/Materials | Build established: Hacker-Scout 2201 | -9/Materials | Reached level 6 2269 | -9/Materials | Destroyed 7 combat bots 2271 | -9/Materials | Discovered exit to Materials (range 7) 2303 | -9/Materials | Reached level 7 2335 | -9/Materials | Destroyed 8 combat bots 2351 | -9/Materials | Build established: Wizard-Scout 2472 | -9/Materials | Discovered new exit (range 17) 2482 | -9/Materials | Identified exit to Mines 2482 | -9/Materials | Identified exit to Storage 2518 | -9/Materials | Reached level 8 2558 | -9/Materials | Entered Mines 2558 | -9/Mines | Accompanied by 1 ally 2597 | -9/Mines | Discovered exit to Materials (range 15) 2601 | -9/Mines | Met a Derelict bent on vengeance 2625 | -9/Mines | Found the Drone Emporium 2627 | -9/Mines | Found Prototype Device 2669 | -9/Mines | Learned location of Zion (-6) 2719 | -9/Mines | Met a Derelict shopkeep closing up shop 2774 | -9/Mines | Discovered new exit (range 15) 2784 | -9/Mines | Deemed a non-threat by the Exiles lab entrance 2785 | -9/Mines | Identified exit to Exiles 2832 | -9/Mines | Identified Bomb Drone Bay 2836 | -9/Mines | Discovered exit to Materials (range 18) 2876 | -9/Mines | Found a damaged Exp. Sensor Array with a note attached 2879 | -9/Mines | Found Prototype Device 2879 | -9/Mines | Identified Exp. Sensor Array 3029 | -9/Mines | Entered Exiles 3029 | -9/Exiles | Accompanied by 3 allies 3035 | -9/Exiles | Discovered new exit (range 16) 3039 | -9/Exiles | Met 8R-AWN 3046 | -9/Exiles | Met EX-HEX 3059 | -9/Exiles | Led the pair of lost Derelicts to a safe place 3063 | -9/Exiles | Met EX-BIN 3068 | -9/Exiles | Aligned with FarCom system 3068 | -9/Exiles | Given EX-Vault access code 3080 | -9/Exiles | Opened EX-Vault 3084 | -9/Exiles | Found Prototype Device 3084 | -9/Exiles | Identified Supersonic Drone Bay 3094 | -9/Exiles | Self-destructed Last Messages --------------- participate in the trials you can have one of our prototypes. How's that for a sweet deal? 03065_ EX-BIN: "Please do it. The faster we get more data and tweak this thing to perfection, the faster I can get back to my spacelab designs." 03068_ FarCom alignment achieved. EX-BIN: All done! Way to be a champ, here's the access code as promised: \\9J37. Only take ONE, mind you, and sorry we don't have much left to pick from. A bunch of our other prototypes were already given to Derelicts out handling other tasks for us. I haven't taken inventory for a while and I'm not sure what's in there now, but if there are more than one of the same prototype you can choose to take all of those and it just counts as your one! 03080_ Connecting with EX-Vault Access... 03084_ Dropped Component Analysis Suite. 03084_ Acquired Prototype Device. 03084_ Identified Supersonic Drone Bay. 03086_ Trailblazer released from Supersonic Drone Bay. 03086_ Trailblazer destroyed. 03091_ Acquired 10 matter. Map ----- +----------------------------------------------------+ | | | | | | | | | | | | | | | | | | | | | | | | | | | | | | | | | | | | | | | | | | | | | | | ??????????#??###?##?#########??????#?##??????????? | | ???????????####?#?### / #??#????#??#?????????? | | ????????????####?##?# ! @ #?####?#????##???????? | | ???????????#????#?#?# #??#????##???????????? | | ????????????#?#?##?## X###?#?#?#????????????? | | ?????????????#?#?#?### ##??#?#?#??#??#???????? | | ??????????????#??####X ;####??##?###?????????? | | ????????#?##?#?#????## ###?????###?###???????? | | ???????????#?#??####?# #?##?#?##?#???????????? | | ??????????????#####?## o ###?########??????????? | | ????????????###?##??## #??"""""###??#????????? | | ??????????##?????##??# ## """##??#?????????? | | ?????????????###??##?# X""#?????????????? | | ??????????#######??### ## """##?#??????????? | | ????????????#??####?## #?""""""##??#?????????? | | ???????????????"""""## ##?####?#?##??#???????? | | ????????????##"""" ## #?######?#?#?###??????? | | ?????????????#""X" #?###????#?#?#????????? | | ?????????????#" ##?#??#????##?????????? | | ?????????????#" ## #######??###?#????????? | | ???????????#?#""""""?# ###########???????????? | | ??????????????#"###?## #?#"""""""#?#?#?????#?? | | ??????????????????#### ###"""""""#?????#?????? | | ??????????????? ?##?## #?#"""""""#???????????? | | ???????????#?????#??## ###"" """"#???#???????? | | ????????????????#?#?#" """"#?##??#??#??? | | ????????????????#???#" """#???????????? | +----------------------------------------------------+ Best States ------------- Heat Dissipation 85 Energy Generation 44 Energy Capacity 650 Matter Stores 700 Matter Capacity 700 Sight Range 18 Robot Scan Range 40 Terrain Scan Range 16 Terrain Scan Density 385 Resistance: KI 5 Resistance: EX 5 Evasion (%) 62 Targeting Accuracy 22 Offensive Hacking 50 Defensive Hacking 25 Item Schematics ----------------- Med. Laser | -9/Materials | Extracted Med. Battery | -9/Materials | Extracted Robot Schematics ------------------ None Fabricated ------------ Nothing Alien Tech Used ----------------- None Achievements -------------- None Challenges ------------ None RPGLIKE | -11 -10 -10 -9 -9 -9 --------- Run | Scr Mat Min Mat Min Exi Levels Raised 7 | . 1 1 5 . . XP Earned 14771 | 3000 1655 2300 6684 889 243 XP Spent 65875 | 55105 . . 6070 4700 . Upgrades 99 | 83 . . 11 5 . Utility Slot 9 | 9 . . . . . Weapon Slot 3 | 3 . . . . . Core Integrity 8 | 8 . . . . . Heat Dissipation 10 | 10 . . . . . Energy Generation 6 | 6 . . . . . Energy Storage 8 | 8 . . . . . Matter Storage 8 | 8 . . . . . Mass Support 6 | 6 . . . . . Inventory Capacity 10 | 10 . . . . . Sensor Range 10 | 10 . . . . . Terrain Scan Density 3 | . . . 3 . . Ranged Accuracy 1 | . . . 1 . . Melee Accuracy 2 | . . . 2 . . Hack Attack % 8 | 3 . . 3 2 . Hack Defense % 5 | 2 . . 2 1 . KI Resistance % 1 | . . . . 1 . EX Resistance % 1 | . . . . 1 . Protomatter Created 764 | . 47 295 383 39 . Integrity Restored 1271 | . 39 829 270 133 . Core 1061 | . 39 703 210 109 . Parts 210 | . . 126 60 24 . Protomatter Decayed 431 | . 34 124 255 18 . Game ------ Seed PropulsionMeleePick Manual? 1 Play Time 00:38:30 Cumulative 18.4 hours Start 2021.11.01 @ 19:39:45 End 2021.11.01 @ 20:21:49 Sessions 1 Manual Loads 0 Difficulty Rogue Special Mode Winter2019/RPGLIKE Game No. 13 Rogue 13 Adventurer 0 Explorer 0 Win Type - Total 1 Types 0/0/0/0/1/0/0/0/0 Lore% 34 Gallery% 31 Achievement% 64 Wizard Run 0 Options --------- ASCII 0 Keyboard 0 Movement Arrows Keybinds 0 Fullscreen 2 Font 18/X11 Map View 76x50 Tactical HUD 1 Map Filters NONE Filters NONE Steam 1 RUN: 515f95df-d1a4-4f94-9352-51be2ad0d4ac